[Event "Panevezys ELITE Open 2021"]
[Site "Panevezys, Lithuania"]
[Date "2021.08.05"]
[Round "8.1"]
[White "Salna, Aleksandras"]
[Black "Meshkovs, Nikita"]
[Result "0-1"]
[WhiteElo "2166"]
[BlackElo "2568"]
[PlyCount "54"]
[EventDate "2021.??.??"]
[TimeControl "90/40+30:0"]
[WhiteClock "0:40:29"]
[BlackClock "0:39:41"]

1. d4 {[%emt 0:00:00]} Nf6 {[%emt 0:00:10]} 2. c4 {[%emt 0:00:07]} c5 {[%emt 0:
00:07]} 3. d5 {[%emt 0:00:06]} g6 {[%emt 0:00:12]} 4. Nc3 {[%emt 0:00:05]} Bg7
{[%emt 0:00:05]} 5. e4 {[%emt 0:00:10]} d6 {[%emt 0:00:05]} 6. h3 {[%emt 0:00:
19]} O-O {[%emt 0:00:11]} 7. Nf3 {[%emt 0:00:14]} e6 {[%emt 0:00:11]} 8. Bd3 {
[%emt 0:00:07]} Na6 {[%emt 0:01:11]} 9. O-O {[%emt 0:01:57]} Nc7 {[%emt 0:04:
05]} 10. Bg5 {[%emt 0:02:18]} h6 {[%emt 0:02:49]} 11. Be3 {[%emt 0:01:27]} e5 {
[%emt 0:10:58]} 12. Qd2 {[%emt 0:09:43]} Kh7 {[%emt 0:00:34]} 13. a3 {[%emt 0:
00:16]} Nh5 {[%emt 0:04:13]} 14. Be2 {[%emt 0:04:37]} f5 {[%emt 0:06:33]} 15.
exf5 {[%emt 0:00:49]} gxf5 {[%emt 0:00:02]} 16. Ne1 {[%emt 0:02:35]} Qe8 {
[%emt 0:06:45]} 17. Qd1 {[%emt 0:01:49]} Nf6 {[%emt 0:00:44]} 18. f4 {[%emt 0:
00:16]} e4 {[%emt 0:01:07]} 19. g3 {[%emt 0:02:37]} b5 {[%emt 0:08:36]} 20.
cxb5 {[%emt 0:01:52]} Bb7 {[%emt 0:00:08]} 21. Bc4 {[%emt 0:00:47]} Nd7 {[%emt
0:00:02]} 22. Qb3 {[%emt 0:03:25]} Qh5 {[%emt 0:03:22]} 23. Kh2 {[%emt 0:02:00]
} Bxc3 {[%emt 0:01:36]} 24. bxc3 {[%emt 0:03:17]} Nf6 {[%emt 0:02:44]} 25. Bc1
{[%emt 0:03:32]} Ncxd5 {[%emt 0:03:47]} 26. Kg2 {[%emt 0:13:06]} Rg8 {[%emt 0:
03:32]} 27. Ra2 {[%emt 0:05:56]} Qh4 {[%emt 0:02:18]} 0-1

[Event "Panevezys ELITE Open 2021"]
[Site "Panevezys, Lithuania"]
[Date "2021.08.05"]
[Round "8.2"]
[White "Kalvaitis, Sigitas"]
[Black "Kazakouski, Valery"]
[Result "0-1"]
[WhiteElo "2164"]
[BlackElo "2499"]
[PlyCount "70"]
[EventDate "2021.??.??"]
[TimeControl "90/40+30:0"]
[WhiteClock "0:12:04"]
[BlackClock "0:19:22"]

1. e4 {[%emt 0:00:45]} e5 {[%emt 0:00:25]} 2. Nf3 {[%emt 0:00:15]} Nc6 {[%emt
0:00:08]} 3. Bc4 {[%emt 0:00:05]} Nf6 {[%emt 0:00:06]} 4. d3 {[%emt 0:00:04]}
Be7 {[%emt 0:00:06]} 5. Bb3 {[%emt 0:04:35]} O-O {[%emt 0:01:26]} 6. O-O {
[%emt 0:00:04]} d6 {[%emt 0:00:59]} 7. c3 {[%emt 0:00:28]} h6 {[%emt 0:02:52]}
8. Re1 {[%emt 0:03:41]} Re8 {[%emt 0:00:19]} 9. Nbd2 {[%emt 0:00:06]} Bf8 {
[%emt 0:01:56]} 10. Nf1 {[%emt 0:00:37]} Be6 {[%emt 0:00:56]} 11. Ng3 {[%emt 0:
03:47]} d5 {[%emt 0:14:19]} 12. h3 {[%emt 0:09:24]} a6 {[%emt 0:04:05]} 13.
exd5 {[%emt 0:15:09]} Bxd5 {[%emt 0:00:50]} 14. Be3 {[%emt 0:03:40]} Bxb3 {
[%emt 0:12:52]} 15. Qxb3 {[%emt 0:01:00]} Na5 {[%emt 0:08:48]} 16. Qa4 {[%emt
0:03:01]} c5 {[%emt 0:02:17]} 17. d4 {[%emt 0:08:27]} b5 {[%emt 0:02:56]} 18.
Qd1 {[%emt 0:00:55]} exd4 {[%emt 0:02:22]} 19. cxd4 {[%emt 0:03:37]} c4 {[%emt
0:03:22]} 20. Ne5 {[%emt 0:01:56]} Qd5 {[%emt 0:02:26]} 21. Qc2 {[%emt 0:14:07]
} Nc6 {[%emt 0:03:04]} 22. Nxc6 {[%emt 0:00:23]} Qxc6 {[%emt 0:00:08]} 23. a3 {
[%emt 0:05:00]} Rad8 {[%emt 0:04:14]} 24. Rac1 {[%emt 0:04:04]} Re6 {[%emt 0:
04:24]} 25. Ne2 {[%emt 0:01:41]} Nd5 {[%emt 0:01:26]} 26. Bd2 {[%emt 0:01:30]}
Rde8 {[%emt 0:02:21]} 27. Nc3 {[%emt 0:01:10]} Nf4 {[%emt 0:01:25]} 28. d5 {
[%emt 0:02:37]} Rxe1+ {[%emt 0:02:19]} 29. Rxe1 {[%emt 0:00:08]} Rxe1+ {[%emt
0:00:06]} 30. Bxe1 {[%emt 0:00:03]} Nxd5 {[%emt 0:00:26]} 31. Qe4 {[%emt 0:01:
06]} Qe6 {[%emt 0:00:59]} 32. Qxe6 {[%emt 0:00:52]} fxe6 {[%emt 0:00:02]} 33.
Ne4 {[%emt 0:01:03]} g5 {[%emt 0:02:25]} 34. Bd2 {[%emt 0:00:50]} Bg7 {[%emt 0:
00:45]} 35. Bc1 {[%emt 0:00:04]} Nf4 {[%emt 0:00:49]} 0-1

[Event "Panevezys ELITE Open 2021"]
[Site "Panevezys, Lithuania"]
[Date "2021.08.05"]
[Round "8.4"]
[White "Greicius, Pijus"]
[Black "Brazdzionis, Andrius"]
[Result "1/2-1/2"]
[WhiteElo "1902"]
[BlackElo "2321"]
[PlyCount "268"]
[EventDate "2021.??.??"]
[TimeControl "90/40+30:0"]
[WhiteClock "0:12:16"]
[BlackClock "0:36:03"]

1. d4 {[%emt 0:00:02]} Nf6 {[%emt 0:00:56]} 2. Bf4 {[%emt 0:00:08]} d5 {[%emt
0:00:54]} 3. e3 {[%emt 0:00:14]} c5 {[%emt 0:00:23]} 4. c3 {[%emt 0:00:21]} Nc6
{[%emt 0:00:17]} 5. Nd2 {[%emt 0:00:24]} Qb6 {[%emt 0:07:17]} 6. Qb3 {[%emt 0:
01:03]} cxd4 {[%emt 0:00:40]} 7. exd4 {[%emt 0:01:08]} Bf5 {[%emt 0:00:29]} 8.
Ngf3 {[%emt 0:01:21]} e6 {[%emt 0:00:51]} 9. Bb5 {[%emt 0:04:40]} Be7 {[%emt 0:
05:22]} 10. Ne5 {[%emt 0:10:17]} Rc8 {[%emt 0:01:57]} 11. Be2 {[%emt 0:03:00]}
Nxe5 {[%emt 0:22:35]} 12. Qxb6 {[%emt 0:02:03]} axb6 {[%emt 0:00:45]} 13. Bxe5
{[%emt 0:00:10]} O-O {[%emt 0:01:02]} 14. Bb5 {[%emt 0:04:01]} Ne8 {[%emt 0:02:
14]} 15. O-O {[%emt 0:03:52]} Nd6 {[%emt 0:03:00]} 16. Bxd6 {[%emt 0:00:26]}
Bxd6 {[%emt 0:00:02]} 17. Rfe1 {[%emt 0:00:18]} Bf4 {[%emt 0:05:52]} 18. Nf3 {
[%emt 0:03:30]} Be4 {[%emt 0:00:51]} 19. Ne5 {[%emt 0:02:23]} Bxe5 {[%emt 0:02:
00]} 20. dxe5 {[%emt 0:00:13]} Rc5 {[%emt 0:00:29]} 21. a4 {[%emt 0:02:18]} Bc2
{[%emt 0:04:26]} 22. Ra3 {[%emt 0:00:00]} Ra8 {[%emt 0:00:41]} 23. f3 {[%emt 0:
02:49]} Kf8 {[%emt 0:01:41]} 24. Kf2 {[%emt 0:00:40]} Ke7 {[%emt 0:00:06]} 25.
Ke3 {[%emt 0:01:27]} f6 {[%emt 0:00:40]} 26. Kd4 {[%emt 0:00:17]} Rf8 {[%emt 0:
11:35]} 27. Re2 {[%emt 0:02:37]} fxe5+ {[%emt 0:03:08]} 28. Kxe5 {[%emt 0:02:
54]} Bb1 {[%emt 0:08:44]} 29. Ra1 {[%emt 0:02:30]} Bg6 {[%emt 0:04:23]} 30.
Rae1 {[%emt 0:01:05]} Rf6 {[%emt 0:00:19]} 31. Rd2 {[%emt 0:22:16]} h5 {[%emt
0:01:56]} 32. Kd4 {[%emt 0:02:59]} Kd6 {[%emt 0:00:14]} 33. Rde2 {[%emt 0:01:
10]} e5+ {[%emt 0:00:23]} 34. Ke3 {[%emt 0:00:06]} h4 {[%emt 0:01:16]} 35. Kd2
{[%emt 0:03:50]} e4 {[%emt 0:00:35]} 36. fxe4 {[%emt 0:00:37]} dxe4 {[%emt 0:
00:31]} 37. Ke3 {[%emt 0:01:10]} h3 {[%emt 0:02:42]} 38. gxh3 {[%emt 0:03:38]}
Rf3+ {[%emt 0:00:11]} 39. Kd4 {[%emt 0:00:44]} Rd5+ {[%emt 0:04:01]} 40. Kc4 {
[%emt 0:00:05]} Rxh3 {[%emt 0:00:39]} 41. Rg1 {[%emt 0:01:37]} Rh6 {[%emt 0:02:
49]} 42. Reg2 {[%emt 0:06:22]} Bf7 {[%emt 0:04:09]} 43. Rxg7 {[%emt 0:03:38]}
Rd1+ {[%emt 0:00:29]} 44. Rxf7 {[%emt 0:03:58]} Rxg1 {[%emt 0:00:07]} 45. Kd4 {
[%emt 0:00:28]} Rd1+ {[%emt 0:01:58]} 46. Kxe4 {[%emt 0:00:26]} Re1+ {[%emt 0:
00:17]} 47. Kd4 {[%emt 0:01:10]} Re7 {[%emt 0:00:34]} 48. Rxe7 {[%emt 0:14:20]}
Kxe7 {[%emt 0:00:02]} 49. b4 {[%emt 0:00:16]} Rh4+ {[%emt 0:02:41]} 50. Kd5 {
[%emt 0:00:10]} Rh5+ {[%emt 0:00:49]} 51. Kc4 {[%emt 0:00:45]} Rxh2 {[%emt 0:
00:31]} 52. a5 {[%emt 0:02:38]} bxa5 {[%emt 0:02:17]} 53. bxa5 {[%emt 0:00:07]}
Rh6 {[%emt 0:00:01]} 54. Kc5 {[%emt 0:01:33]} Kd8 {[%emt 0:00:11]} 55. c4 {
[%emt 0:01:12]} Kc7 {[%emt 0:00:05]} 56. Kb4 {[%emt 0:00:13]} Kb8 {[%emt 0:00:
13]} 57. Kc5 {[%emt 0:00:24]} Ka7 {[%emt 0:00:07]} 58. Kb4 {[%emt 0:00:22]} Rh1
{[%emt 0:00:11]} 59. Ka4 {[%emt 0:01:25]} Ra1+ {[%emt 0:00:21]} 60. Kb4 {[%emt
0:00:07]} Kb8 {[%emt 0:00:19]} 61. Bd7 {[%emt 0:04:40]} Kc7 {[%emt 0:00:50]}
62. Bf5 {[%emt 0:00:11]} Re1 {[%emt 0:00:51]} 63. Bg4 {[%emt 0:02:18]} Kd6 {
[%emt 0:03:45]} 64. Bc8 {[%emt 0:02:31]} Rb1+ {[%emt 0:00:21]} 65. Kc3 {[%emt
0:00:17]} Kc5 {[%emt 0:00:21]} 66. a6 {[%emt 0:00:19]} bxa6 {[%emt 0:01:33]}
67. Bxa6 {[%emt 0:00:06]} Ra1 {[%emt 0:00:07]} 68. Bb5 {[%emt 0:00:22]} Ra3+ {
[%emt 0:00:05]} 69. Kd2 {[%emt 0:00:10]} Kd4 {[%emt 0:00:28]} 70. Ke2 {[%emt 0:
00:12]} Rb3 {[%emt 0:00:50]} 71. Kf2 {[%emt 0:01:30]} Rc3 {[%emt 0:01:23]} 72.
Ke2 {[%emt 0:00:31]} Rd3 {[%emt 0:02:26]} 73. Kf2 {[%emt 0:00:32]} Re3 {[%emt
0:00:06]} 74. Bc6 {[%emt 0:00:15]} Re5 {[%emt 0:00:42]} 75. Bd5 {[%emt 0:00:11]
} Rf5+ {[%emt 0:00:04]} 76. Ke2 {[%emt 0:00:05]} Rf8 {[%emt 0:00:08]} 77. Kd2 {
[%emt 0:05:54]} Rf2+ {[%emt 0:00:12]} 78. Kc1 {[%emt 0:00:27]} Kd3 {[%emt 0:00:
40]} 79. Kb1 {[%emt 0:01:40]} Kc3 {[%emt 0:00:11]} 80. Ka1 {[%emt 0:00:45]} Kb3
{[%emt 0:02:02]} 81. c5+ {[%emt 0:00:06]} Ka3 {[%emt 0:00:08]} 82. Kb1 {[%emt
0:00:23]} Rf5 {[%emt 0:00:06]} 83. Be4 {[%emt 0:00:14]} Rxc5 {[%emt 0:00:07]}
84. Bc2 {[%emt 0:00:37]} Rh5 {[%emt 0:00:32]} 85. Bg6 {[%emt 0:00:52]} Rh2 {
[%emt 0:00:09]} 86. Kc1 {[%emt 0:00:18]} Kb3 {[%emt 0:00:13]} 87. Bf7+ {[%emt
0:00:15]} Kc3 {[%emt 0:00:04]} 88. Kb1 {[%emt 0:00:11]} Kb4 {[%emt 0:01:35]}
89. Bg6 {[%emt 0:00:13]} Rf2 {[%emt 0:00:17]} 90. Bh7 {[%emt 0:00:19]} Kc3 {
[%emt 0:00:41]} 91. Bg8 {[%emt 0:00:25]} Rb2+ {[%emt 0:00:25]} 92. Ka1 {[%emt
0:00:11]} Rb8 {[%emt 0:00:06]} 93. Bf7 {[%emt 0:00:30]} Ra8+ {[%emt 0:00:20]}
94. Kb1 {[%emt 0:00:05]} Rf8 {[%emt 0:00:04]} 95. Bd5 {[%emt 0:01:00]} Rb8+ {
[%emt 0:00:22]} 96. Ka1 {[%emt 0:00:17]} Rb4 {[%emt 0:00:08]} 97. Bf7 {[%emt 0:
00:26]} Kc2 {[%emt 0:00:21]} 98. Bg6+ {[%emt 0:00:42]} Kb3 {[%emt 0:00:05]} 99.
Kb1 {[%emt 0:00:21]} Ka3+ {[%emt 0:00:10]} 100. Kc1 {[%emt 0:00:18]} Ka2 {
[%emt 0:00:37]} 101. Bf7+ {[%emt 0:00:17]} Ka1 {[%emt 0:00:02]} 102. Be6 {
[%emt 0:00:24]} Rb6 {[%emt 0:00:06]} 103. Bd5 {[%emt 0:00:11]} Rb5 {[%emt 0:00:
01]} 104. Be6 {[%emt 0:00:14]} Rc5+ {[%emt 0:00:02]} 105. Kd2 {[%emt 0:00:06]}
Kb2 {[%emt 0:00:02]} 106. Kd3 {[%emt 0:00:10]} Ka3 {[%emt 0:00:16]} 107. Bf7 {
[%emt 0:00:16]} Rc7 {[%emt 0:00:12]} 108. Be6 {[%emt 0:00:07]} Kb4 {[%emt 0:00:
05]} 109. Kd4 {[%emt 0:00:06]} Rc1 {[%emt 0:00:06]} 110. Bf5 {[%emt 0:01:12]}
Rd1+ {[%emt 0:00:05]} 111. Ke5 {[%emt 0:00:10]} Kc5 {[%emt 0:00:03]} 112. Bc2 {
[%emt 0:00:17]} Re1+ {[%emt 0:00:05]} 113. Be4 {[%emt 0:00:11]} Re2 {[%emt 0:
00:08]} 114. Kf4 {[%emt 0:00:39]} Kd4 {[%emt 0:00:04]} 115. Bb1 {[%emt 0:00:14]
} Rf2+ {[%emt 0:00:02]} 116. Kg5 {[%emt 0:00:08]} Ke5 {[%emt 0:00:06]} 117. Kg6
{[%emt 0:00:14]} Rb2 {[%emt 0:00:20]} 118. Bd3 {[%emt 0:00:13]} Rb6+ {[%emt 0:
00:38]} 119. Kg7 {[%emt 0:00:06]} Rb7+ {[%emt 0:00:09]} 120. Kg6 {[%emt 0:00:
12]} Kf4 {[%emt 0:00:06]} 121. Kf6 {[%emt 0:00:48]} Rb6+ {[%emt 0:00:04]} 122.
Kg7 {[%emt 0:00:13]} Rb3 {[%emt 0:00:21]} 123. Bc4 {[%emt 0:00:11]} Rc3 {[%emt
0:00:10]} 124. Ba2 {[%emt 0:00:09]} Ra3 {[%emt 0:00:19]} 125. Bb1 {[%emt 0:01:
03]} Kg5 {[%emt 0:00:18]} 126. Kf7 {[%emt 0:00:19]} Re3 {[%emt 0:00:05]} 127.
Ba2 {[%emt 0:00:09]} Ra3 {[%emt 0:00:12]} 128. Bb1 {[%emt 0:00:05]} Ra6 {[%emt
0:00:04]} 129. Bd3 {[%emt 0:00:09]} Rd6 {[%emt 0:00:05]} 130. Bb1 {[%emt 0:00:
06]} Rb6 {[%emt 0:00:19]} 131. Bd3 {[%emt 0:00:09]} Rb7+ {[%emt 0:00:08]} 132.
Ke6 {[%emt 0:00:07]} Kf4 {[%emt 0:00:02]} 133. Bc4 {[%emt 0:00:13]} Rb6+ {
[%emt 0:00:05]} 134. Kd5 {[%emt 0:00:06]} Rb4 {[%emt 0:00:06]} 1/2-1/2

[Event "Panevezys ELITE Open 2021"]
[Site "Panevezys, Lithuania"]
[Date "2021.08.05"]
[Round "8.5"]
[White "Juksta, Karolis"]
[Black "Sedykh, Mikhail"]
[Result "1-0"]
[WhiteElo "2438"]
[BlackElo "2119"]
[PlyCount "129"]
[EventDate "2021.??.??"]
[TimeControl "90/40+30:0"]
[WhiteClock "0:04:56"]
[BlackClock "0:03:59"]

1. d4 {[%emt 0:00:01]} d5 {[%emt 0:00:04]} 2. c4 {[%emt 0:00:08]} e6 {[%emt 0:
00:06]} 3. Nc3 {[%emt 0:00:05]} Nf6 {[%emt 0:00:05]} 4. cxd5 {[%emt 0:00:06]}
exd5 {[%emt 0:00:03]} 5. Bg5 {[%emt 0:00:06]} Be7 {[%emt 0:00:06]} 6. e3 {
[%emt 0:00:05]} c6 {[%emt 0:00:04]} 7. Bd3 {[%emt 0:00:06]} Nbd7 {[%emt 0:00:
06]} 8. Qc2 {[%emt 0:00:05]} O-O {[%emt 0:00:07]} 9. Nge2 {[%emt 0:00:05]} Re8
{[%emt 0:00:14]} 10. O-O {[%emt 0:00:08]} Nf8 {[%emt 0:00:06]} 11. f3 {[%emt 0:
00:05]} g6 {[%emt 0:00:08]} 12. Rad1 {[%emt 0:01:19]} Ne6 {[%emt 0:00:12]} 13.
Bh4 {[%emt 0:01:32]} b5 {[%emt 0:00:07]} 14. Bf2 {[%emt 0:12:00]} Bb7 {[%emt 0:
00:35]} 15. h3 {[%emt 0:03:13]} Rc8 {[%emt 0:02:54]} 16. Qd2 {[%emt 0:07:02]}
b4 {[%emt 0:04:16]} 17. Na4 {[%emt 0:02:00]} Qa5 {[%emt 0:01:27]} 18. b3 {
[%emt 0:00:49]} c5 {[%emt 0:03:41]} 19. Nxc5 {[%emt 0:00:45]} Nxc5 {[%emt 0:00:
11]} 20. dxc5 {[%emt 0:00:08]} Bxc5 {[%emt 0:00:15]} 21. Rc1 {[%emt 0:04:46]}
Ba6 {[%emt 0:07:47]} 22. Rc2 {[%emt 0:13:56]} Bxd3 {[%emt 0:04:17]} 23. Qxd3 {
[%emt 0:00:17]} Bxe3 {[%emt 0:00:11]} 24. Rxc8 {[%emt 0:03:04]} Bxf2+ {[%emt 0:
00:08]} 25. Rxf2 {[%emt 0:00:07]} Rxc8 {[%emt 0:00:07]} 26. Qd4 {[%emt 0:03:01]
} Rc6 {[%emt 0:11:38]} 27. Nf4 {[%emt 0:04:25]} Qc5 {[%emt 0:18:16]} 28. Qxc5 {
[%emt 0:01:55]} Rxc5 {[%emt 0:00:02]} 29. Nd3 {[%emt 0:05:28]} Rb5 {[%emt 0:00:
43]} 30. Rc2 {[%emt 0:01:54]} a5 {[%emt 0:06:00]} 31. Kf2 {[%emt 0:01:06]} Rb6
{[%emt 0:07:14]} 32. Rc5 {[%emt 0:15:24]} Ra6 {[%emt 0:00:20]} 33. g4 {[%emt 0:
02:35]} h6 {[%emt 0:05:28]} 34. Rb5 {[%emt 0:01:50]} Ra7 {[%emt 0:14:43]} 35.
Ke3 {[%emt 0:01:05]} d4+ {[%emt 0:02:39]} 36. Kxd4 {[%emt 0:00:57]} Rd7+ {
[%emt 0:00:09]} 37. Kc4 {[%emt 0:00:44]} Ra7 {[%emt 0:02:19]} 38. Nc5 {[%emt 0:
01:52]} Ne8 {[%emt 0:03:35]} 39. Rb8 {[%emt 0:00:40]} Kf8 {[%emt 0:00:41]} 40.
Kb5 {[%emt 0:04:25]} Re7 {[%emt 0:08:08]} 41. Kxa5 {[%emt 0:12:29]} Re2 {[%emt
0:00:12]} 42. Kxb4 {[%emt 0:00:13]} Rxa2 {[%emt 0:00:07]} 43. Ne4 {[%emt 0:03:
15]} Ke7 {[%emt 0:00:37]} 44. Rb7+ {[%emt 0:00:42]} Ke6 {[%emt 0:00:31]} 45.
Kc5 {[%emt 0:08:38]} Rh2 {[%emt 0:07:32]} 46. Kc6 {[%emt 0:08:40]} f5 {[%emt 0:
09:14]} 47. Nc5+ {[%emt 0:01:17]} Kf6 {[%emt 0:00:03]} 48. b4 {[%emt 0:02:34]}
Rxh3 {[%emt 0:01:23]} 49. b5 {[%emt 0:01:36]} fxg4 {[%emt 0:07:43]} 50. fxg4 {
[%emt 0:00:20]} Rc3 {[%emt 0:01:43]} 51. b6 {[%emt 0:00:54]} Rc4 {[%emt 0:03:
37]} 52. Rd7 {[%emt 0:01:48]} Rxg4 {[%emt 0:00:28]} 53. b7 {[%emt 0:01:21]} Rb4
{[%emt 0:00:10]} 54. Rd8 {[%emt 0:00:15]} Ng7 {[%emt 0:01:08]} 55. Nd7+ {[%emt
0:01:15]} Ke7 {[%emt 0:01:24]} 56. Nb6 {[%emt 0:00:43]} Rxb6+ {[%emt 0:00:38]}
57. Kxb6 {[%emt 0:00:06]} Kxd8 {[%emt 0:00:02]} 58. b8=Q+ {[%emt 0:00:09]} Ke7
{[%emt 0:00:02]} 59. Qg8 {[%emt 0:00:24]} Kf6 {[%emt 0:02:06]} 60. Qf8+ {[%emt
0:00:06]} Kg5 {[%emt 0:00:04]} 61. Qxg7 {[%emt 0:00:21]} h5 {[%emt 0:00:07]}
62. Kc5 {[%emt 0:00:36]} Kf5 {[%emt 0:00:11]} 63. Kd4 {[%emt 0:00:11]} g5 {
[%emt 0:00:08]} 64. Ke3 {[%emt 0:00:13]} g4 {[%emt 0:00:16]} 65. Qh6 {[%emt 0:
00:29]} 1-0

[Event "Panevezys ELITE Open 2021"]
[Site "Panevezys, Lithuania"]
[Date "2021.08.05"]
[Round "8.7"]
[White "Carlsson, Ludvig"]
[Black "Bagvilas, Lukas"]
[Result "1-0"]
[WhiteElo "2258"]
[BlackElo "2000"]
[PlyCount "29"]
[EventDate "2021.??.??"]
[TimeControl "90/40+30:0"]
[WhiteClock "1:04:49"]
[BlackClock "1:15:59"]

1. e4 {[%emt 0:01:11]} c6 {[%emt 0:00:06]} 2. Nf3 {[%emt 0:00:09]} d5 {[%emt 0:
00:07]} 3. d3 {[%emt 0:00:04]} Bg4 {[%emt 0:00:24]} 4. h3 {[%emt 0:00:09]} dxe4
{[%emt 0:01:30]} 5. hxg4 {[%emt 0:00:52]} exf3 {[%emt 0:00:07]} 6. Qxf3 {[%emt
0:00:46]} Nd7 {[%emt 0:00:14]} 7. Nc3 {[%emt 0:07:13]} e5 {[%emt 0:00:58]} 8.
Bd2 {[%emt 0:08:38]} Bc5 {[%emt 0:02:34]} 9. Ne4 {[%emt 0:06:41]} Ne7 {[%emt 0:
09:57]} 10. b4 {[%emt 0:04:47]} f5 {[%emt 0:00:00]} 11. gxf5 {[%emt 0:02:45]}
Bb6 {[%emt 0:00:19]} 12. Nd6+ {[%emt 0:03:07]} Kf8 {[%emt 0:00:05]} 13. Qh5 {
[%emt 0:00:03]} g6 {[%emt 0:00:50]} 14. fxg6 {[%emt 0:00:17]} Nxg6 {[%emt 0:00:
01]} 15. Qxg6 {[%emt 0:00:44]} 1-0

[Event "Panevezys ELITE Open 2021"]
[Site "Panevezys, Lithuania"]
[Date "2021.08.05"]
[Round "8.8"]
[White "Voroblievas, Arturas"]
[Black "Milovs, Daniels"]
[Result "0-1"]
[WhiteElo "1699"]
[BlackElo "1743"]
[PlyCount "116"]
[EventDate "2021.??.??"]
[TimeControl "90/40+30:0"]
[WhiteClock "0:29:58"]
[BlackClock "0:22:38"]

1. e4 {[%emt 0:00:03]} e6 {[%emt 0:00:27]} 2. d4 {[%emt 0:00:06]} d5 {[%emt 0:
00:00]} 3. Nc3 {[%emt 0:00:10]} Bb4 {[%emt 0:00:02]} 4. e5 {[%emt 0:00:21]} c5
{[%emt 0:00:02]} 5. a3 {[%emt 0:00:06]} Bxc3+ {[%emt 0:00:02]} 6. bxc3 {[%emt
0:00:06]} Ne7 {[%emt 0:00:02]} 7. Qg4 {[%emt 0:00:50]} O-O {[%emt 0:00:02]} 8.
Bg5 {[%emt 0:01:39]} Qa5 {[%emt 0:03:59]} 9. Bd2 {[%emt 0:05:53]} Qa4 {[%emt 0:
03:52]} 10. Bd3 {[%emt 0:03:41]} c4 {[%emt 0:06:18]} 11. Bxh7+ {[%emt 0:02:26]}
Kxh7 {[%emt 0:01:56]} 12. Qh4+ {[%emt 0:00:16]} Kg8 {[%emt 0:00:03]} 13. Qxe7 {
[%emt 0:00:21]} Nc6 {[%emt 0:02:19]} 14. Qh4 {[%emt 0:05:48]} Qxc2 {[%emt 0:01:
34]} 15. Nf3 {[%emt 0:02:51]} Bd7 {[%emt 0:08:43]} 16. O-O {[%emt 0:02:46]} Qh7
{[%emt 0:12:34]} 17. Qg3 {[%emt 0:03:00]} Ne7 {[%emt 0:01:18]} 18. Ng5 {[%emt
0:02:41]} Qg6 {[%emt 0:02:49]} 19. Qh3 {[%emt 0:09:06]} Qf5 {[%emt 0:09:52]}
20. Qh4 {[%emt 0:01:43]} f6 {[%emt 0:03:35]} 21. exf6 {[%emt 0:10:56]} gxf6 {
[%emt 0:00:12]} 22. Nf3 {[%emt 0:05:59]} Kf7 {[%emt 0:01:27]} 23. Qf4 {[%emt 0:
03:10]} Rg8 {[%emt 0:08:17]} 24. g3 {[%emt 0:07:24]} Rg4 {[%emt 0:04:12]} 25.
Qxf5 {[%emt 0:01:18]} Nxf5 {[%emt 0:00:07]} 26. Kg2 {[%emt 0:08:50]} Nd6 {
[%emt 0:01:09]} 27. h4 {[%emt 0:01:28]} Ne4 {[%emt 0:01:01]} 28. Be1 {[%emt 0:
00:32]} Ba4 {[%emt 0:03:38]} 29. Rc1 {[%emt 0:01:07]} Rc8 {[%emt 0:08:37]} 30.
Nd2 {[%emt 0:05:39]} Nxc3 {[%emt 0:04:15]} 31. Rxc3 {[%emt 0:00:17]} Rxd4 {
[%emt 0:00:06]} 32. Nf3 {[%emt 0:01:19]} Rd1 {[%emt 0:02:03]} 33. Bd2 {[%emt 0:
04:38]} d4 {[%emt 0:00:26]} 34. Rc1 {[%emt 0:01:20]} Rxf1 {[%emt 0:00:41]} 35.
Kxf1 {[%emt 0:01:01]} c3 {[%emt 0:01:04]} 36. Be1 {[%emt 0:06:00]} e5 {[%emt 0:
03:18]} 37. h5 {[%emt 0:00:16]} Bb5+ {[%emt 0:02:12]} 38. Kg1 {[%emt 0:00:17]}
Bd3 {[%emt 0:02:24]} 39. g4 {[%emt 0:00:35]} Be2 {[%emt 0:02:54]} 40. Nh2 {
[%emt 0:01:07]} e4 {[%emt 0:01:13]} 41. f3 {[%emt 0:00:34]} e3 {[%emt 0:02:02]}
42. Bxc3 {[%emt 0:04:05]} Rxc3 {[%emt 0:01:13]} 43. Rb1 {[%emt 0:00:41]} b6 {
[%emt 0:01:32]} 44. Kg2 {[%emt 0:00:22]} d3 {[%emt 0:04:05]} 45. Nf1 {[%emt 0:
00:53]} Bxf1+ {[%emt 0:07:00]} 46. Kxf1 {[%emt 0:00:23]} d2 {[%emt 0:00:12]}
47. Rd1 {[%emt 0:00:23]} Rc1 {[%emt 0:00:03]} 48. Ke2 {[%emt 0:00:10]} Rxd1 {
[%emt 0:00:03]} 49. Kxd1 {[%emt 0:00:06]} b5 {[%emt 0:00:10]} 50. f4 {[%emt 0:
00:04]} a5 {[%emt 0:00:13]} 51. g5 {[%emt 0:00:06]} fxg5 {[%emt 0:00:11]} 52.
fxg5 {[%emt 0:00:07]} Kg7 {[%emt 0:00:18]} 53. h6+ {[%emt 0:00:25]} Kg6 {[%emt
0:00:24]} 54. Kc2 {[%emt 0:00:38]} b4 {[%emt 0:00:13]} 55. axb4 {[%emt 0:01:54]
} axb4 {[%emt 0:00:05]} 56. Kd1 {[%emt 0:00:45]} b3 {[%emt 0:00:29]} 57. Ke2 {
[%emt 0:00:13]} b2 {[%emt 0:00:13]} 58. Kxe3 {[%emt 0:00:10]} d1=B {[%emt 0:00:
24]} 0-1